[Event "4NCL 2022-2023"]
[Site "Daventry"]
[Date "2023.03.18"]
[Round "7.24"]
[White "Steil-Antoni, Fiona"]
[Black "Terbe, Julianna"]
[Result "0-1"]
[ECO "C55"]
[WhiteElo "2195"]
[BlackElo "2278"]
[Annotator "TA"]
[PlyCount "120"]
[EventDate "2022.10.20"]
[EventType "team-tourn"]
[EventCountry "ENG"]
[SourceTitle "playchess.com"]
[Source "ChessBase"]
[SourceQuality "1"]
[TimeControl "40/6000+30:2400+30"]

{[%evp 17,120,24,21,19,20,18,20,0,16,4,9,2,24,17,43,18,29,-42,-37,-26,-30,-37,-24,-27,0,0,0,-14,23,36,12,-49,91,88,89,98,133,132,252,219,220,213,191,183,188,193,175,168,187,189,188,187,171,132,171,111,108,103,90,94,95,105,118,111,101,100,101,102,108,99,113,17,90,29,70,76,71,8,8,8,23,0,0,-309,-293,-563,-563,-494,-409,-365,-355,-304,-164,-168,-166,-333,-260,-483,-469,-1025,-915,-29980,-29981,-29981,-29982]} 1. e4 {[%emt 0:02:26]} e5 {[%emt 0:00:10]} 2. Nf3 {[%emt 0:00:05]} Nc6 {[%emt 0:00:07]} 3. Bc4 {[%emt 0:00:06]} Nf6 {[%emt 0:00:07]} 4. d3 {[%emt 0:07:28]} h6 {[%emt 0:00:09]} 5. c3 {[%emt 0:00:51]} d6 {[%emt 0:00:06]} 6. Bb3 {[%emt 0:04:47]} g6 {[%emt 0:00:09]} 7. Nbd2 {[%emt 0:04:03][%cal Bb1d2,Bd2f1,Bf1e3][%mdl 32]} Bg7 {[%emt 0:00:06]} 8. O-O {[%emt 0:01:39]} O-O {[%emt 0:00:07]} 9. Re1 {[%emt 0:01:13]} Re8 {[%emt 0:00:09]} 10. Nf1 {[%emt 0:03:42] C55: Two Knights: 4 d3, 4 d4 exd4 5 e5 and Max Lange Attack.} Be6 {[%emt 0:03:01] [#]} 11. Bxe6 $146 {[%emt 0:12:46]} ({Predecessor:} 11. Ba4 a6 12. Ng3 b5 13. Bc2 d5 14. Be3 Qe7 15. h3 Rad8 16. Qc1 Kh7 17. a4 b4 {1-0 Onischuk,V (2622)-Leitao,R (2592) Titled Tuesday intern op 05th Oct blitz 2021 (6)}) 11... Rxe6 {[%emt 0:00:09]} 12. Qb3 {[%emt 0:02:12] The position is equal.} Rb8 {[%emt 0:28:24]} 13. Ne3 {[%emt 0:03:03]} Re8 {[%emt 0:08:25]} 14. Bd2 {[%emt 0:04:35]} Ne7 {[%emt 0:11:53]} 15. Rad1 {[%emt 0:04:31]} c6 {[%emt 0:01:20][%cal Bc7c6,Bc6c5][%mdl 32]} 16. h3 {[%emt 0:06:39]} Qc7 {[%emt 0:02:08]} 17. g4 {[%emt 0:02:24]} (17. c4 $11) 17... d5 $15 {[%emt 0:03:58]} 18. Nf1 {[%emt 0:00:54]} Rbd8 {[%emt 0:03:37]} 19. Ng3 {[%emt 0:02:31]} c5 {[%emt 0:05:01]} 20. Kg2 {[%emt 0:12:43]} Nc6 {[%emt 0:04:01][%cal Oc5c4]} 21. g5 {[%emt 0:13:27]} hxg5 {[%emt 0:00:48]} 22. Bxg5 {[%emt 0:00:33]} c4 {[%emt 0:20:49]} 23. dxc4 {[%emt 0:00:56]} Na5 {[%emt 0:01:21]} 24. Qa4 {[%emt 0:03:16]} (24. Qb4 $11) 24... dxc4 {[%emt 0:03:40]} (24... Nxc4 $15 {keeps the upper hand.} 25. Bxf6 (25. Qxa7 $2 {loses.} Ra8 $19) 25... Bxf6) 25. Rxd8 $16 {[%emt 0:00:44]} Rxd8 {[%emt 0:00:45]} 26. Qb5 {[%emt 0:01:25]} a6 {[%emt 0:01:52]} 27. Qxe5 {[%emt 0:01:16]} Qb6 {[%emt 0:02:33]} (27... Qxe5 $16 28. Nxe5 Re8) 28. Be3 {[%emt 0:03:08]} Qb5 {[%emt 0:00:11]} 29. Qxb5 {[%emt 0:02:12]} axb5 {[%emt 0:00:01]} 30. Bb6 {[%emt 0:04:57]} Ra8 {[%emt 0:00:04]} 31. Bxa5 {[%emt 0:00:12]} Rxa5 {[%emt 0:00:01]} 32. a3 {[%emt 0:00:14]} Nd7 {[%emt 0:00:27]} 33. Rd1 {[%emt 0:02:04]} Nc5 {[%emt 0:00:06]} 34. Rd8+ {[%emt 0:00:31]} Bf8 {[%emt 0:00:09]} 35. Ne5 {[%emt 0:03:11] Prevents Nd3} Kg7 {[%emt 0:01:00]} 36. Nd7 {[%emt 0:00:40]} (36. h4 $18) 36... Be7 {[%emt 0:00:50]} 37. Re8 {[%emt 0:00:46]} Nxd7 {[%emt 0:00:11]} 38. Rxe7 {[%emt 0:00:02][%mdl 4096] Endgame KRN-KRN} Nc5 {[%emt 0:00:06]} 39. e5 {[%emt 0:00:44]} Kf8 {[%emt 0:02:25]} 40. Rc7 {[%emt 0:00:26]} Nd3 {[%emt 0:03:30][%csl LRb2,LRe5]} 41. Rxb7 {[%emt 0:07:45]} Nxb2 {[%emt 0:00:00]} 42. Ne4 {[%emt 0:01:14] [#] Hoping for Nd6.} Nd3 {[%emt 0:00:00]} 43. Nd6 {[%emt 0:01:25][%csl LRb5,LRf7]} Nxe5 {[%emt 0:01:19]} 44. Nxb5 {[%emt 0:08:35]} ({White should try} 44. Rxb5 $16 Ra6 45. Rxe5 Rxd6 46. a4) 44... Ra6 {[%emt 0:03:26]} (44... Nd3 $11 {remains equal.}) 45. Rc7 {[%emt 0:02:43]} (45. Ra7 $16 Rxa7 46. Nxa7) 45... Rf6 {[%emt 0:00:33]} 46. a4 {[%emt 0:02:49]} Nd3 {[%emt 0:02:14]} 47. Rxc4 {[%emt 0:02:06]} (47. f3 $16) 47... Rxf2+ $11 {[%emt 0:00:10]} 48. Kg3 {[%emt 0:00:43] Threatens to win with Rd4.} Ra2 {[%emt 0:00:22]} 49. Nd6 {[%emt 0:01:53]} f5 {[%emt 0:06:24]} 50. Kh4 $2 {[%emt 0:16:55][%mdl 8192] [#]} (50. Rd4 $11 {and White stays safe.} Nc5 51. Nb5) 50... Rg2 $1 $19 {[%emt 0:05:46] And now ...Ne5 would win.} 51. Ne4 $2 {[%emt 0:00:00]} (51. Nxf5 {was necessary.} gxf5 52. a5) 51... fxe4 {[%emt 0:06:44]} 52. Rxe4 {[%emt 0:00:00] KRN-KR} Kg7 {[%emt 0:02:38]} 53. Rg4 {[%emt 0:00:00]} Ra2 {[%emt 0:00:13]} 54. Kg5 {[%emt 0:00:27]} Ne5 {[%emt 0:07:38]} (54... Rf2 $142 {...Rf5+ would be deadly.} 55. Re4 Rf5+ 56. Kh4 Ra5) 55. Re4 {[%emt 0:00:55]} Nf7+ {[%emt 0:00:51]} 56. Kg4 $2 {[%emt 0:00:35]} (56. Kf4) 56... Ra3 {[%emt 0:03:19]} 57. h4 $2 {[%emt 0:00:22]} (57. Kf4 {was called for.}) 57... Rxc3 {[%emt 0:01:04]} 58. h5 {[%emt 0:00:44]} (58. a5 $142 Ra3 59. h5) 58... g5 {[%emt 0:00:21] ( -> ...Kf6)} 59. Rb4 {[%emt 0:00:30]} Nh6+ {[%emt 0:03:21]} 60. Kxg5 {[%emt 0:00:18]} Rg3+ {[%emt 0:00:04] What a bad dream for White.   Weighted Error Value: White=0.58/Black=0.19 (very precise)} 0-1

[Event "4NCL 2022-2023"]
[Site "Daventry"]
[Date "2023.03.18"]
[Round "7.25"]
[White "Murphy, Conor E"]
[Black "Kozusek, Daniel"]
[Result "1-0"]
[ECO "B30"]
[WhiteElo "2431"]
[BlackElo "2328"]
[Annotator "TA"]
[PlyCount "80"]
[EventDate "2022.10.20"]
[EventType "team-tourn"]
[EventCountry "ENG"]
[SourceTitle "playchess.com"]
[Source "ChessBase"]
[SourceQuality "1"]
[TimeControl "40/6000+30:2400+30"]

{[%evp 12,80,33,0,51,35,35,16,36,30,27,0,0,0,17,0,12,0,11,0,0,-18,0,0,33,14,35,37,91,89,97,113,111,73,66,66,52,52,56,61,255,255,255,241,231,231,231,231,231,231,241,239,239,227,227,220,254,261,304,300,647,613,590,590,613,606,7573,7188,6270,5698,5314]} 1. e4 {[%emt 0:04:16][%cal Be2e4,Be4e5][%mdl 32]} c5 {[%emt 0:00:10]} 2. Nf3 {[%emt 0:00:33]} Nc6 {[%emt 0:00:20]} 3. Nc3 {[%emt 0:02:32]} Nf6 {[%emt 0:03:09]} 4. Bb5 {[%emt 0:00:49]} Nd4 {[%emt 0:00:42]} 5. e5 {[%emt 0:01:38]} Nxb5 {[%emt 0:01:01]} 6. Nxb5 {[%emt 0:00:09]} Nd5 {[%emt 0:01:53]} 7. O-O {[%emt 0:05:01]} Nc7 {[%emt 0:11:47] B30: Sicilian: 2...Nc6 3 Bb5, lines without ...g6.} ({Black should try} 7... a6 $11 8. Nc3 Nxc3 9. dxc3 d5) 8. Nxc7+ {[%emt 0:18:07]} Qxc7 {[%emt 0:00:05]} 9. d4 {[%emt 0:01:29]} cxd4 {[%emt 0:03:24] Black is weak on the dark squares. The position is equal.} 10. Qxd4 {[%emt 0:04:53]} b6 {[%emt 0:09:35] [#]} 11. Bf4 $146 {[%emt 0:21:14][%cal Oe5e6] e6! would be deadly.} ({Predecessor:} 11. Rd1 Bb7 12. Rd3 e6 13. Rc3 Bc6 14. Qg4 Qb7 15. Nd4 Bd5 16. Nb5 Bc6 17. a4 h5 18. Qg5 Rh6 19. Nd6+ {1-0 Vydeslaver,A (2445)-Chernyshov,K (2505) Leeuwarden op 1995 (9)}) 11... e6 {[%emt 0:00:18]} 12. Rfd1 {[%emt 0:02:21]} Bb7 {[%emt 0:01:50]} 13. Qd3 {[%emt 0:01:52]} Qc6 {[%emt 0:05:33]} 14. Rd2 {[%emt 0:05:32]} Be7 {[%emt 0:07:01][%cal Og7g5]} 15. h4 {[%emt 0:05:09][%cal Bh2h4,Bh4h5][%mdl 32]} h6 {[%emt 0:01:52][%cal Og7g5]} 16. Rad1 {[%emt 0:04:24][%cal Rd3d7] [#]} g5 $1 {[%emt 0:04:55]} 17. Bg3 {[%emt 0:12:43]} (17. Qxd7+ $2 {is the wrong capture.} Qxd7 18. Rxd7 Bxf3 19. gxf3 gxf4 $19) (17. hxg5 hxg5) 17... O-O-O {[%emt 0:17:56]} 18. h5 $1 {[%emt 0:01:04]} g4 {[%emt 0:04:15]} 19. Ne1 {[%emt 0:00:12]} Kb8 {[%emt 0:02:23]} ({Black should play} 19... Bg5 $14) 20. Qe2 $16 {[%emt 0:01:31]} Rhg8 {[%emt 0:03:55]} 21. Rd4 {[%emt 0:00:35]} Rg7 {[%emt 0:07:58]} 22. Rxg4 {[%emt 0:03:01]} Ba6 {[%emt 0:01:14][%mdl 64] [#] Deflection} 23. Qe4 {[%emt 0:01:43]} ({Stronger than} 23. Qxa6 Rxg4 24. Qe2 Ra4 $17) 23... Qxe4 {[%emt 0:04:01]} 24. Rxe4 {[%emt 0:00:03]} Bb7 {[%emt 0:01:15]} 25. Rf4 {[%emt 0:02:39]} Bc5 $2 {[%emt 0:01:16] This move loses the game for Black.} (25... Kc8 $14) 26. Bh4 $18 {[%emt 0:05:10]} Rdg8 {[%emt 0:01:47][%cal Rb7g2]} 27. Rxd7 {[%emt 0:01:07]} f5 {[%emt 0:04:12]} 28. Rxg7 {[%emt 0:01:33]} Rxg7 {[%emt 0:00:04]} 29. b4 {[%emt 0:01:04]} Bf8 {[%emt 0:01:10]} 30. Rd4 {[%emt 0:00:33] Rd8+ is the strong threat.} Kc7 {[%emt 0:00:04]} 31. a3 {[%emt 0:00:54]} Rd7 {[%emt 0:03:51]} 32. Rxd7+ {[%emt 0:01:56]} Kxd7 {[%emt 0:00:05][%mdl 4096] Endgame KBB-KBN} 33. f3 {[%emt 0:00:35]} a5 {[%emt 0:00:36]} 34. Nd3 {[%emt 0:00:29]} Ba6 {[%emt 0:00:05]} 35. Be1 {[%emt 0:00:19]} Bxd3 $2 {[%emt 0:02:20]} (35... Bb5 36. bxa5 bxa5) 36. cxd3 {[%emt 0:00:06] White is clearly winning.} Kc6 {[%emt 0:00:57]} 37. bxa5 {[%emt 0:00:45]} Bxa3 {[%emt 0:00:05]} 38. axb6 {[%emt 0:00:26]} Bb2 {[%emt 0:01:22]} 39. Bd2 {[%emt 0:00:36]} Bd4+ {[%emt 0:00:26]} 40. Kf1 {[%emt 0:00:14]} Kd5 {[%emt 0:00:44] Weighted Error Value: White=0.07 (flawless) /Black=0.32} 1-0

[Event "4NCL 2022-2023"]
[Site "Daventry"]
[Date "2023.03.18"]
[Round "7.26"]
[White "Cooper, John G"]
[Black "Bisby, Daniel L"]
[Result "1-0"]
[ECO "E74"]
[WhiteElo "2243"]
[BlackElo "2277"]
[Annotator "TA"]
[PlyCount "49"]
[EventDate "2022.10.20"]
[EventType "team-tourn"]
[EventCountry "ENG"]
[SourceTitle "playchess.com"]
[Source "ChessBase"]
[SourceQuality "1"]
[TimeControl "40/6000+30:2400+30"]

{[%evp 18,48,20,11,136,120,124,116,109,91,91,91,119,112,109,111,118,100,106,117,256,241,422,426,854,803,946,915,1041,1027,1028,1016,29999]} 1. c4 {[%emt 0:00:10]} Nf6 {[%emt 0:00:10]} 2. Nc3 {[%emt 0:00:22]} g6 {[%emt 0:00:12]} 3. e4 {[%emt 0:00:42]} d6 {[%emt 0:00:57]} 4. d4 {[%emt 0:00:10]} Bg7 {[%emt 0:00:11]} 5. Be2 {[%emt 0:00:24]} O-O {[%emt 0:01:08]} 6. Bg5 {[%emt 0:00:32]} c5 {[%emt 0:06:57]} 7. d5 {[%emt 0:00:31]} h6 {[%emt 0:00:33]} 8. Be3 {[%emt 0:00:54]} e6 {[%emt 0:02:00]} 9. dxe6 {[%emt 0:01:21] 9.Nf3 is setting a new trend.} Bxe6 {[%emt 0:02:19]} 10. Qd2 {[%emt 0:00:19]} Nc6 {[%emt 0:25:05] E74: King's Indian: Averbakh Variation: 6...c5.} (10... Qa5 $11 {remains equal.}) 11. Bxh6 $16 {[%emt 0:04:53]} Bxh6 {[%emt 0:00:28]} 12. Qxh6 {[%emt 0:00:07] Hoping for h4.} Nd4 {[%emt 0:00:12] White is better.} 13. O-O-O {[%emt 0:24:30] [#] Inhibits Nc2.} b5 $146 {[%emt 0:06:45]} ({Predecessor:} 13... Nxe2+ 14. Ngxe2 Bxc4 15. h4 Ng4 16. Qf4 Ne5 17. Qg3 Qa5 18. h5 Bxe2 19. hxg6 Nxg6 20. Rxd6 {1-0 Montag,A (2486)-Liew,C (2330) IECG WC.2000.S.00006 email 1999}) 14. h4 $1 {[%emt 0:13:34][%cal Bh2h4,Bh4h5][%mdl 32]} (14. Nxb5 $6 Rb8 $11) 14... b4 {[%emt 0:15:04] [#]} (14... Bxc4 $2 15. h5 Nxe2+ 16. Ngxe2 $18) 15. h5 $1 {[%emt 0:04:09][%cal Oh5g6] White wants to mate with hxg6!} Nxe2+ {[%emt 0:03:47]} (15... bxc3 16. hxg6) 16. Ncxe2 {[%emt 0:00:47]} Ng4 {[%emt 0:07:08]} 17. Qf4 {[%emt 0:04:03] Strongly threatening Nf3.} g5 {[%emt 0:11:56]} 18. Qg3 {[%emt 0:02:02] Nh3 is the strong threat.} (18. Qxd6 $2 Nxf2 19. Ng3 (19. Qxd8 $2 Raxd8 20. Nf3 Nxd1 $19) 19... Nxd1 20. Qxd1 Qxd1+ 21. Kxd1 Bxc4 $19) 18... Qa5 {[%emt 0:03:39] [#] This move loses the game for Black.} (18... Qe7 $16) 19. Kb1 $1 $18 {[%emt 0:08:12] And now Nh3 would win.} (19. Qxd6 $2 Qxa2 20. Nf3 (20. Qxc5 $2 Qa1+ 21. Kc2 b3+ {[%mdl 64] Deflection} 22. Kc3 Qxd1 $19) 20... Qxc4+ 21. Kb1 Qa2+ 22. Kc1 Bb3 $19) 19... f5 $2 {[%emt 0:01:55]} (19... f6 20. b3 (20. Qxd6 $2 Bxc4 21. Nc1 Rad8 $19) (20. Rxd6 Rad8 $16) 20... Qd8) 20. Nh3 {[%emt 0:14:31]} (20. Qxd6 Bxc4 21. Nc1 (21. b3 Rad8 $17) 21... Qb6 $16) 20... fxe4 {[%emt 0:07:53]} (20... Qd8 $142 21. Rxd6 (21. Qxd6 Qxd6 22. Rxd6 Bxc4 $18) 21... f4 22. Rxd8 fxg3 23. Rxa8 Rxa8 24. Nxg3 Rf8) 21. Nxg5 {[%emt 0:06:09]} ({Weaker is} 21. Qxd6 Qb6 22. Qg3 (22. Nxg5 Qxd6 23. Rxd6 Bxc4 $14) 22... Bf5 $18) 21... Bxc4 {[%emt 0:06:43]} 22. Nc1 {[%emt 0:00:40] A dynamic duo of knights.} (22. Qxg4 Qxa2+ 23. Kc1 Qa1+ 24. Kc2 b3+ 25. Kd2 (25. Kc3 Qa5+ 26. Kxc4 Qb4+ 27. Kd5 Qb7+ 28. Kc4 Qb4+ 29. Kd5 Qb7+ 30. Kc4 Qb4+ $11) 25... Qxb2+ 26. Ke3 Qxe2+ 27. Qxe2 Bxe2 28. Kxe2 Rf5 $16) 22... Nf6 {[%emt 0:02:58]} 23. Nxe4+ {[%emt 0:03:55]} Kh8 {[%emt 0:00:31]} 24. Rxd6 {[%emt 0:02:20]} Nxe4 {[%emt 0:02:05]} 25. Rh6# {[%emt 0:17:43] An entertaining game by Cooper.   Weighted Error Value: White=0.02 (flawless) /Black=0.75} 1-0

[Event "4NCL 2022-2023"]
[Site "Daventry"]
[Date "2023.03.18"]
[Round "7.27"]
[White "McClement, Andrew"]
[Black "Jones, Steven A"]
[Result "1-0"]
[ECO "B33"]
[WhiteElo "2210"]
[BlackElo "2143"]
[Annotator "TA"]
[PlyCount "67"]
[EventDate "2022.10.20"]
[EventType "team-tourn"]
[EventCountry "ENG"]
[SourceTitle "playchess.com"]
[Source "ChessBase"]
[SourceQuality "1"]
[TimeControl "40/6000+30:2400+30"]

{[%evp 23,67,48,51,33,37,30,64,61,66,38,46,37,42,36,41,0,43,38,52,52,52,54,83,81,59,60,126,77,89,76,84,87,81,86,129,131,283,289,369,355,550,536,522,294,522,522]} 1. e4 {[%emt 0:00:02]} c5 {[%emt 0:00:20]} 2. Nf3 {[%emt 0:00:02]} Nc6 {[%emt 0:00:27]} 3. d4 {[%emt 0:00:03]} cxd4 {[%emt 0:00:12]} 4. Nxd4 {[%emt 0:00:02]} Nf6 {[%emt 0:00:40]} 5. Nc3 {[%emt 0:00:02]} e5 {[%emt 0:00:21]} 6. Ndb5 {[%emt 0:00:02]} d6 {[%emt 0:00:09]} 7. Bg5 {[%emt 0:00:08]} a6 {[%emt 0:00:11]} 8. Na3 {[%emt 0:00:02]} b5 {[%emt 0:00:59]} 9. Nd5 {[%emt 0:00:05]} Be7 {[%emt 0:00:31]} 10. Bxf6 {[%emt 0:00:06]} Bxf6 {[%emt 0:00:09]} 11. c3 {[%emt 0:00:03]} Ne7 {[%emt 0:00:38]} 12. Nxf6+ {[%emt 0:05:40]} gxf6 {[%emt 0:00:31]} 13. Qf3 {[%emt 0:00:07] B33: Sicilian: Pelikan and Sveshnikov Variations.} f5 $1 {[%emt 0:05:41]} 14. exf5 {[%emt 0:02:05][%cal Be4f5,Bf5f6][%mdl 32]} d5 {[%emt 0:13:22]} 15. f6 {[%emt 0:07:59] White is slightly better.} Ng6 {[%emt 0:01:26][%cal Be7g6,Bg6e5,Be5f3][%mdl 32]} 16. Rd1 {[%emt 0:02:34] White is more active.} Be6 {[%emt 0:02:35] [#]} 17. g3 $146 {[%emt 0:05:27]} ({Predecessor:} 17. h4 e4 18. Qg3 Qxf6 19. Qd6 Ne7 20. Nc2 O-O 21. Ne3 Rfd8 22. Qg3+ Kh8 23. h5 {½-½ Sott,P (2155)-Kucera,T (2040) Klatovy op-A 2002}) 17... e4 {[%emt 0:03:13][%mdl 64] Deflection} 18. Qe3 {[%emt 0:04:40]} Qxf6 {[%emt 0:08:40][%cal Ob5b4]} 19. Be2 {[%emt 0:09:00]} ({Don't go for} 19. Nxb5 $2 axb5 20. Qc5 Ne7 21. Bxb5+ Kf8 $19) 19... O-O {[%emt 0:04:26][%cal Ob5b4]} (19... b4 $5 {[%cal Rb4a3]} 20. Nc2 bxc3 21. bxc3 O-O $11) 20. Nc2 {[%emt 0:03:26]} Ne5 {[%emt 0:16:29]} 21. O-O {[%emt 0:01:22]} Bh3 {[%emt 0:02:03]} 22. Rfe1 {[%emt 0:00:30]} Rad8 {[%emt 0:03:34]} 23. Nb4 {[%emt 0:04:51]} Qe6 {[%emt 0:01:50]} 24. Qc5 {[%emt 0:01:52][%cal Rd1d5]} Qf5 {[%emt 0:03:37]} ({Black should try} 24... Bg4 $14) 25. Rxd5 {[%emt 0:06:21]} (25. Nxd5 $142 {And now Ne7+ would win.} Kg7 26. Qb6) 25... Nf3+ $16 {[%emt 0:01:34] [#]} 26. Kh1 $1 {[%emt 0:02:43]} (26. Bxf3 {leads to mate.} Qxf3 27. Rg5+ Kh8 28. Qe5+ f6) 26... Rxd5 {[%emt 0:00:44]} 27. Nxd5 {[%emt 0:00:12] Ne7+ would be deadly.} Kg7 {[%emt 0:01:08]} 28. Rd1 {[%emt 0:06:38] Qd6 is the strong threat.} Qh5 {[%emt 0:01:51][%cal Oh3g2]} 29. Qd4+ {[%emt 0:01:28][%mdl 64] Pin, Double Attack} f6 $2 {[%emt 0:07:22] This costs Black the game.} (29... Nxd4 $16 30. Bxh5 Ne6) 30. Qxe4 $18 {[%emt 0:03:44]} Bg4 {[%emt 0:00:12][%csl Gf3][%cal Rh5h2]} 31. h4 {[%emt 0:01:13] Strongly threatening Ne3.} Re8 {[%emt 0:00:37] [#]} (31... Ne5 $142 32. Nf4 Qf5 33. Qxf5 Bxf5) 32. Qf4 $1 {[%emt 0:05:37]} Rxe2 {[%emt 0:04:20]} 33. Qxf6+ {[%emt 0:03:13]} Kg8 {[%emt 0:00:54][%cal Oh5d5] ( -> ...Qxd5!)} 34. Nf4 {[%emt 0:00:47] An entertaining game by McClement.   Weighted Error Value: White=0.07 (flawless) /Black=0.49} (34. Qxa6 {is a self mate.} Qxd5) 1-0

[Event "4NCL 2022-2023"]
[Site "Daventry"]
[Date "2023.03.18"]
[Round "7.28"]
[White "Macfarlane, Donald"]
[Black "Hill, Alistair"]
[Result "1-0"]
[ECO "A33"]
[WhiteElo "2145"]
[BlackElo "2173"]
[Annotator "TA"]
[PlyCount "55"]
[EventDate "2022.10.20"]
[EventType "team-tourn"]
[EventCountry "ENG"]
[SourceTitle "playchess.com"]
[Source "ChessBase"]
[SourceQuality "1"]
[TimeControl "40/6000+30:2400+30"]

{[%evp 12,55,0,-13,0,-35,-5,-20,-26,-10,0,-22,-10,-10,0,3,21,25,18,24,37,32,32,25,31,31,24,17,28,18,36,32,50,16,29,19,405,397,396,407,395,399,766,747,738,732]} 1. c4 {[%emt 0:02:09]} Nf6 {[%emt 0:00:09]} 2. Nf3 {[%emt 0:03:44]} c5 {[%emt 0:00:27]} 3. d4 {[%emt 0:06:45]} cxd4 {[%emt 0:00:46]} 4. Nxd4 {[%emt 0:00:07]} e6 {[%emt 0:00:06]} 5. Nc3 {[%emt 0:06:30]} d5 {[%emt 0:00:16]} 6. Nc2 {[%emt 0:11:46]} Nc6 {[%emt 0:03:48]} 7. cxd5 {[%emt 0:01:47]} exd5 {[%emt 0:00:12] A33: Symmetrical English: 2 Nf3 Nf6 3 d4 cxd4 4 Nxd4 e6 5 Nc3 Nc6.} 8. e3 {[%emt 0:00:46]} Bc5 {[%emt 0:04:10]} 9. Be2 {[%emt 0:03:21][%cal Ob2b4]} O-O {[%emt 0:13:00] The position is equal.} 10. O-O {[%emt 0:00:05]} Bf5 {[%emt 0:01:07]} 11. Nb5 {[%emt 0:18:12]} Rc8 {[%emt 0:24:36]} 12. Ncd4 {[%emt 0:11:49] [#]} Be4 $146 {[%emt 0:01:48]} ({Predecessor:} 12... Bg6 13. h4 Qb6 14. h5 Be4 15. h6 g6 16. Nf3 Bxf3 17. gxf3 d4 18. e4 Rfd8 19. Bd3 Ne5 {0-1 Joseph,S (1815)-Nagley,T (1852) IECC TH-M email 1998}) 13. b3 {[%emt 0:01:16]} Nxd4 {[%emt 0:19:07]} 14. Nxd4 {[%emt 0:00:39]} Bd6 {[%emt 0:00:04]} 15. Bb2 {[%emt 0:04:50]} Bb8 {[%emt 0:01:15]} 16. Rc1 {[%emt 0:02:31]} Qd6 {[%emt 0:00:07][%csl Gb8][%cal Rd6h2] [#]} 17. g3 {[%emt 0:00:28]} Qd7 {[%emt 0:05:38]} 18. f3 {[%emt 0:12:18] Rxc8 would be deadly.} Bg6 {[%emt 0:00:16]} 19. Bd3 {[%emt 0:01:24]} a6 {[%emt 0:04:20]} 20. Qd2 {[%emt 0:04:54]} Qh3 {[%emt 0:06:26]} 21. Rxc8 {[%emt 0:01:29]} (21. Ne2 {seems wilder.} Nh5 22. Bb1 Rfe8 23. Bd4) 21... Rxc8 {[%emt 0:00:06]} 22. Rc1 {[%emt 0:01:43]} (22. Ne2 {is more complex.} Re8 23. Rc1 Bh5 24. Bxf6 gxf6 25. Nd4) 22... Rxc1+ {[%emt 0:04:32]} 23. Bxc1 {[%emt 0:00:05]} Nd7 $2 {[%emt 0:00:06][%mdl 8192] [#] Loses the game.} (23... Bxd3 $11 {and Black is okay.} 24. Qxd3 Be5) 24. Bf1 $1 $18 {[%emt 0:01:12]} Qh5 {[%emt 0:01:16]} 25. Qb4 {[%emt 0:03:30]} Qe5 {[%emt 0:05:32]} 26. Qxb7 {[%emt 0:00:19]} Nf8 {[%emt 0:00:06]} (26... Qc7 27. Qxc7 (27. Qxa6 $2 {too greedy.} Qxc1 28. Kf2 Nf8 $19) 27... Bxc7 28. Bxa6 Nc5) 27. Nc6 {[%emt 0:01:05]} Qc7 {[%emt 0:01:00]} 28. Qxb8 {[%emt 0:00:56] Weighted Error Value: White=0.06 (flawless) /Black=0.42} 1-0